bitfinex-derivatives/quotes_SOLF0:USTF0_20250312
["timestamp","ask_amount","ask_price","bid_price","bid_amount"]
[1741751592339,0.0562856,122.95,122.91,57.83316215]
[1741751592540,0.0562856,122.95,122.91,25.47316215]
[1741751593047,8.136,122.94,122.91,17.33596215]
[1741751593440,8.1913856,122.95,122.92,8.1367]
[1741751593633,0.0562856,122.95,122.91,17.33596215]
[1741751594345,8.1355,122.94,122.91,25.47296215]
[1741751594546,0.0562856,122.95,122.91,17.33596215]
[1741751595141,8.1913856,122.95,122.92,8.1363]
[1741751597547,0.0562856,122.95,122.93,17.33596215]
[1741751599349,0.0562856,122.95,122.93,25.47186215]
[1741751599748,8.1911856,122.95,122.93,17.33596215]
[1741751600448,0.0562856,122.95,122.93,17.33596215]
[1741751600951,0.0562856,122.95,122.92,40.4968]
[1741751600952,0.0562856,122.95,122.92,17.33596215]
[1741751601449,0.0562856,122.95,122.9,25.47396215]
[1741751601642,2.3950856,122.95,122.9,17.33596215]
[1741751601846,8.1379,122.91,122.88,49.69596215]
[1741751602247,8.19694297,122.91,122.88,49.69596215]
[1741751602946,8.19694297,122.91,122.88,17.33596215]
[1741751603347,0.05904297,122.91,122.88,25.47526215]
[1741751604157,0.05904297,122.91,122.89,8.1387]
[1741751606356,0.05904297,122.91,122.88,17.33596215]
[1741751606956,0.05904297,122.91,122.9,8.1381]
[1741751608557,0.05904297,122.91,122.86,243.94]
[1741751608757,0.05904297,122.91,122.87,17.33596215]
[1741751609955,0.05904297,122.91,122.89,8.1382]
[1741751610257,0.05904297,122.91,122.87,17.33596215]
[1741751611557,0.05904297,122.91,122.81,244.08]
[1741751611756,32.36,122.93,122.85,8.1409]
[1741751611757,4.598,122.92,122.85,8.1409]
[1741751611957,0.05697847,122.88,122.85,8.1409]
[1741751612350,0.05697847,122.88,122.85,8.1413]
[1741751613459,8.19677847,122.88,122.84,25.47766215]
[1741751613655,0.05697847,122.88,122.81,244.08]
[1741751613856,2.3288,122.87,122.81,244.08]
[1741751614057,32.36,122.9,122.82,17.33596215]
[1741751614256,0.05987766,122.85,122.84,17.33596215]
[1741751614461,8.1392,122.89,122.85,8.1413]
[1741751614652,0.06150591,122.86,122.85,8.1413]
[1741751615563,0.06150591,122.86,122.83,32.36]
[1741751616060,0.06150591,122.86,122.84,8.142]
[1741751616363,0.06150591,122.86,122.83,32.36]
[1741751616761,0.06150591,122.86,122.81,244.08]
[1741751617160,0.06150591,122.86,122.8,25.48026215]
[1741751617365,0.06150591,122.86,122.78,17.33596215]
[1741751617366,4.72450591,122.86,122.78,17.33596215]
[1741751617665,7.0701,122.86,122.79,8.1452]
[1741751617863,0.05613355,122.83,122.78,17.33596215]
[1741751618264,0.05613355,122.83,122.8,8.1441]
[1741751618865,8.19893355,122.83,122.8,8.1441]
[1741751619164,8.19893355,122.83,122.79,8.1451]
[1741751620568,0.05613355,122.83,122.8,8.1446]
[1741751621267,0.05613355,122.83,122.81,8.1441]
[1741751622069,0.05613355,122.83,122.82,8.1434]
[1741751622459,0.05613355,122.83,122.82,25.47936215]
[1741751626069,2.3814,122.89,122.82,17.33596215]
[1741751626268,10.5204,122.89,122.84,17.33596215]
[1741751626666,10.5204,122.89,122.85,8.141]
[1741751626863,10.5204,122.89,122.84,17.33596215]
[1741751627061,0.05492098,122.88,122.86,0.05168511]
[1741751628669,0.05492098,122.88,122.87,8.1401]
[1741751630667,0.05492098,122.88,122.86,49.74764726]
[1741751630668,0.05492098,122.88,122.86,17.38764726]
[1741751630870,0.05492098,122.88,122.86,0.05168511]
[1741751631063,8.1401,122.87,122.86,0.05168511]
[1741751631973,0.05492098,122.88,122.86,0.05168511]
[1741751632564,8.1401,122.87,122.86,0.05168511]
[1741751632764,0.05492098,122.88,122.86,0.05168511]
[1741751633167,8.19482098,122.88,122.86,0.05168511]
[1741751633571,8.1401,122.87,122.86,0.05168511]
[1741751634367,8.1419,122.85,122.82,17.33596215]
[1741751634671,8.1419,122.85,122.81,40.5038]
[1741751634869,8.1419,122.85,122.81,8.1438]
[1741751635061,8.1421,122.84,122.81,8.1438]
[1741751635569,0.05138983,122.84,122.78,244.2]
[1741751635773,8.1431,122.83,122.8,8.1447]
[1741751636069,0.05138983,122.84,122.79,17.33596215]
[1741751636574,32.41138983,122.84,122.78,244.2]
[1741751636774,8.1444,122.81,122.78,244.2]
[1741751637271,0.06082464,122.81,122.78,244.2]
[1741751637472,0.06082464,122.81,122.77,17.33596215]
[1741751637774,0.06082464,122.81,122.78,8.146]
[1741751638668,0.06082464,122.81,122.79,8.1454]
[1741751639070,0.06082464,122.81,122.77,17.33596215]
[1741751639268,0.06082464,122.81,122.79,8.145]
[1741751639676,0.06082464,122.81,122.79,17.33596215]
[1741751639978,0.06082464,122.81,122.8,8.1447]
[1741751641677,36.921,122.88,122.79,17.33596215]
[1741751641977,8.1408,122.86,122.81,17.33596215]
[1741751642170,8.1408,122.86,122.81,49.69596215]
[1741751642367,4.561,122.88,122.81,49.69596215]
[1741751642872,0.05263877,122.86,122.84,8.1419]
[1741751643671,0.05263877,122.86,122.84,40.5019]
[1741751644178,0.05263877,122.86,122.84,32.36]
[1741751644974,0.05263877,122.86,122.84,40.502]
[1741751647273,0.05263877,122.86,122.84,32.36]
[1741751647473,4.6686,122.92,122.85,17.33596215]
[1741751647679,4.6686,122.92,122.87,17.33596215]
[1741751647974,12.8058,122.92,122.88,8.1391]
[1741751648478,0.05773152,122.91,122.89,0.05672342]
[1741751648980,8.1381,122.9,122.89,0.05672342]
[1741751649277,0.05773152,122.91,122.89,0.05672342]
[1741751649681,8.19523152,122.91,122.89,0.05672342]
[1741751649873,0.05773152,122.91,122.89,0.05672342]
[1741751650073,8.19553152,122.91,122.89,0.05672342]
[1741751651998,8.1381,122.9,122.89,0.05672342]
[1741751652679,0.05773152,122.91,122.89,0.05672342]
[1741751652680,8.19543152,122.91,122.89,0.05672342]
[1741751655875,0.05773152,122.91,122.89,0.05672342]
[1741751658678,37.1169955,122.9,122.82,17.33596215]
[1741751658881,4.75634818,122.89,122.82,17.33596215]
[1741751659081,8.1396,122.88,122.83,8.1424]
[1741751659781,0.05539623,122.87,122.84,0.05695546]
[1741751661180,8.19549623,122.87,122.84,0.05695546]
[1741751662673,8.141,122.86,122.84,0.05695546]
[1741751663678,32.36,122.86,122.84,0.05695546]
[1741751665284,40.501,122.86,122.84,0.05695546]
[1741751665684,32.36,122.86,122.84,0.05695546]
[1741751666690,0.05539623,122.87,122.84,0.05695546]
[1741751667186,8.1414,122.85,122.84,0.05695546]
[1741751671292,0.05539623,122.87,122.84,0.05695546]
[1741751671591,8.1411,122.86,122.84,0.05695546]
[1741751672686,0.05539623,122.87,122.84,0.05695546]
[1741751673192,8.1411,122.86,122.84,0.05695546]
[1741751673987,8.19589623,122.87,122.84,0.05695546]
[1741751675893,8.19589623,122.87,122.84,8.19885546]
[1741751676783,8.1412,122.86,122.84,0.05695546]
[1741751677284,0.05539623,122.87,122.84,0.05695546]
[1741751677490,8.19569623,122.87,122.84,0.05695546]
[1741751677689,0.05539623,122.87,122.84,0.05695546]
[1741751678395,8.19579623,122.87,122.84,11.18553291]
[1741751678896,8.1411,122.86,122.84,11.18553291]
[1741751680699,8.19579623,122.87,122.84,11.18553291]
[1741751680901,0.05539623,122.87,122.84,0.05695546]
[1741751681100,0.05539623,122.87,122.84,11.18553291]
[1741751681301,8.1412,122.86,122.84,11.18553291]
[1741751681992,8.19579623,122.87,122.84,11.18553291]
[1741751682193,0.05539623,122.87,122.84,11.18553291]
[1741751684298,8.19619623,122.87,122.84,11.18553291]
[1741751685397,0.05539623,122.87,122.84,11.18553291]
[1741751685597,8.1409,122.86,122.84,11.18553291]
[1741751685803,0.05539623,122.87,122.84,11.18553291]
[1741751686201,8.1413,122.86,122.84,11.18553291]
[1741751686900,0.05539623,122.87,122.84,11.18553291]
[1741751687297,4.76961339,122.86,122.84,11.18553291]
[1741751687503,8.1414,122.85,122.84,11.18553291]
[1741751688400,0.05539623,122.87,122.8,244.26]
[1741751688606,39.30572127,122.86,122.82,11.12857745]
[1741751688897,7.01022127,122.85,122.82,11.12857745]
[1741751689102,8.1427,122.84,122.82,11.12857745]
[1741751689602,8.1953236,122.84,122.82,11.12857745]
[1741751689803,8.1427,122.83,122.82,11.12857745]
[1741751694602,8.1427,122.83,122.81,11.12857745]
[1741751694807,32.34,122.83,122.8,11.12857745]
[1741751695311,32.40037432,122.83,122.8,11.12857745]
[1741751695703,8.1447,122.81,122.8,11.12857745]
[1741751696105,8.1437,122.82,122.8,11.12857745]
[1741751696305,8.1437,122.82,122.81,11.12857745]
[1741751696715,0.06037432,122.83,122.81,11.12857745]
[1741751697018,0.06037432,122.83,122.82,11.12857745]
[1741751699920,0.06037432,122.83,122.82,19.27197745]
[1741751700119,0.06037432,122.83,122.82,11.12857745]
[1741751703020,0.06037432,122.83,122.82,19.27197745]
[1741751703826,0.06037432,122.83,122.82,11.12857745]
[1741751704720,0.06037432,122.83,122.82,19.27197745]
[1741751705324,0.06037432,122.83,122.82,11.12857745]
[1741751706020,0.06037432,122.83,122.8,11.12857745]
[1741751706526,8.1438,122.82,122.8,11.12857745]
[1741751706925,8.1441,122.81,122.8,11.12857745]
[1741751707226,0.06037432,122.83,122.8,11.12857745]
[1741751707524,12.92083263,122.82,122.8,11.12857745]
[1741751707720,0.06037432,122.83,122.8,11.12857745]
[1741751707925,0.06037432,122.83,122.82,11.12857745]
[1741751708125,4.83806157,122.83,122.82,11.12857745]
[1741751708327,0.06037432,122.83,122.82,11.12857745]
[1741751711831,4.83753428,122.83,122.8,11.12857745]
[1741751712028,12.92079159,122.82,122.8,11.12857745]
[1741751712226,8.1438,122.82,122.8,11.12857745]
[1741751712426,0.06037432,122.83,122.8,11.12857745]
[1741751712821,4.77603868,122.82,122.8,11.12857745]
[1741751713022,0.06037432,122.83,122.8,11.12857745]
[1741751713226,12.91987364,122.82,122.8,11.12857745]
[1741751713428,0.06037432,122.83,122.8,11.12857745]
[1741751713631,4.77547515,122.82,122.8,11.12857745]
[1741751713826,8.20367432,122.83,122.8,11.12857745]
[1741751714031,4.77621481,122.82,122.8,11.12857745]
[1741751714225,8.1438,122.82,122.8,11.12857745]
[1741751717128,0.06037432,122.83,122.8,11.12857745]
[1741751717333,8.20317432,122.83,122.8,11.12857745]
[1741751717634,0.06037432,122.83,122.8,11.12857745]
[1741751718936,8.1441,122.81,122.8,11.12857745]
[1741751719641,8.1437,122.82,122.8,11.12857745]
[1741751720539,8.1437,122.82,122.79,19.27397745]
[1741751721235,0.06037432,122.83,122.79,11.12857745]
[1741751721441,8.1442,122.81,122.79,11.12857745]
[1741751721843,8.1437,122.82,122.8,11.12857745]
[1741751722743,8.1447,122.81,122.79,11.12857745]
[1741751722941,8.1447,122.81,122.8,11.12857745]
[1741751725246,12.91889981,122.81,122.8,11.12857745]
[1741751725449,8.1447,122.81,122.8,11.12857745]
[1741751726545,12.91840385,122.81,122.8,11.12857745]
[1741751727949,4.77370385,122.81,122.8,11.12857745]
[1741751728442,12.91810552,122.81,122.8,11.12857745]
[1741751729149,12.91802469,122.81,122.8,11.12857745]
[1741751735357,0.06037432,122.83,122.8,11.12857745]
[1741751735552,4.77702846,122.82,122.8,11.12857745]
[1741751735756,4.77694217,122.81,122.79,11.12857745]
[1741751735957,43.46857745,122.84,122.79,11.12857745]
[1741751736256,0.05262963,122.81,122.79,11.12857745]
[1741751736461,8.1447,122.8,122.79,11.12857745]
[1741751738357,8.1447,122.8,122.78,11.12857745]
[1741751738555,8.1451,122.8,122.78,11.12857745]
[1741751738959,8.1451,122.8,122.79,11.12857745]
[1741751739157,12.91999981,122.8,122.79,11.12857745]
[1741751739657,4.77489981,122.8,122.79,11.12857745]
[1741751740962,12.91959981,122.8,122.79,11.12857745]
[1741751743363,4.77489981,122.8,122.77,11.12857745]
[1741751743666,4.77527331,122.79,122.76,11.12857745]
[1741751743964,8.1459,122.79,122.76,11.12857745]
[1741751744755,8.1459,122.79,122.76,19.27597745]
[1741751746556,4.77391496,122.78,122.74,11.12857745]
[1741751746766,4.77313446,122.77,122.73,11.12857745]
[1741751746967,0.06114111,122.77,122.76,11.12857745]
[1741751750459,0.06114111,122.77,122.76,19.27597745]
[1741751750664,0.06114111,122.77,122.76,11.12857745]
[1741751750864,0.06114111,122.77,122.74,11.12857745]
[1741751751164,8.1488,122.74,122.71,11.12857745]
[1741751751663,8.20076302,122.74,122.71,11.12857745]
[1741751751968,0.05196302,122.74,122.71,11.12857745]
[1741751752664,8.1503,122.72,122.68,19.28127745]
[1741751753168,0.05581282,122.71,122.69,11.12857745]
[1741751753369,0.05581282,122.71,122.7,11.12857745]
[1741751755774,8.20651282,122.71,122.7,11.12857745]
[1741751755974,0.05581282,122.71,122.7,11.12857745]
[1741751756875,8.20651282,122.71,122.7,11.12857745]
[1741751757867,0.05581282,122.71,122.7,11.12857745]
[1741751758681,0.05581282,122.71,122.68,40.4724]
[1741751758978,0.05581282,122.71,122.69,11.12857745]
[1741751760474,0.05581282,122.71,122.7,11.12857745]
[1741751761479,0.05581282,122.71,122.7,19.27997745]
[1741751761779,0.05581282,122.71,122.7,11.12857745]
[1741751762174,0.05581282,122.71,122.68,32.32]
[1741751762375,0.05581282,122.71,122.7,11.12857745]
[1741751762574,0.05581282,122.71,122.69,11.12857745]
[1741751763381,0.05581282,122.71,122.69,19.28047745]
[1741751764376,0.05581282,122.71,122.69,11.12857745]
[1741751764982,0.05581282,122.71,122.69,19.28047745]
[1741751765481,8.20661282,122.71,122.69,11.12857745]
[1741751765679,11.12857745,122.7,122.56,135.21810212]
[1741751765878,11.12857745,122.64,122.59,11.12857745]
[1741751766182,11.12857745,122.63,122.58,11.12857745]
[1741751766379,11.12857745,122.62,122.57,13.40966491]
[1741751766679,8.1582,122.6,122.57,13.40966491]
[1741751766879,11.18139101,122.62,122.57,13.40966491]
[1741751767084,0.05281356,122.62,122.59,11.12857745]
[1741751767382,11.18139101,122.62,122.57,13.40966491]
[1741751767880,11.12857745,122.61,122.57,2.28108746]
[1741751768284,11.12857745,122.61,122.57,13.40966491]
[1741751768477,11.18139101,122.62,122.57,13.40966491]
[1741751768781,0.05281356,122.62,122.58,11.12857745]
[1741751770081,0.05281356,122.62,122.59,11.12857745]
[1741751770873,0.05281356,122.62,122.61,11.12857745]
[1741751771986,0.05281356,122.62,122.6,11.12857745]
[1741751772573,0.05281356,122.62,122.59,11.12857745]
[1741751772776,0.05281356,122.62,122.58,43.46857745]
[1741751773177,11.18139101,122.62,122.58,43.46857745]
[1741751773382,11.18139101,122.62,122.57,2.28108746]
[1741751773583,11.18139101,122.62,122.58,11.12857745]
[1741751773780,8.1579,122.61,122.58,11.12857745]
[1741751773989,11.12857745,122.59,122.57,2.28108746]
[1741751774188,11.12857745,122.58,122.57,2.28108746]
[1741751774780,0.05956888,122.59,122.57,2.28108746]
[1741751774977,0.05956888,122.59,122.57,13.40966491]
[1741751775175,0.05956888,122.59,122.58,11.12857745]
[1741751775381,0.05956888,122.59,122.58,43.46857745]
[1741751775680,0.05956888,122.59,122.58,51.62797745]
[1741751776186,0.00633626,122.59,122.58,51.62797745]
[1741751780184,11.12857745,122.65,122.58,43.46857745]
[1741751780386,192.0,122.75,122.64,11.12857745]
[1741751780688,11.12857745,122.73,122.68,11.12857745]
[1741751780888,8.1512,122.71,122.68,11.12857745]
[1741751781078,11.12857745,122.72,122.67,11.12857745]
[1741751781482,0.06149812,122.71,122.68,0.06104167]
[1741751781890,8.21279812,122.71,122.68,0.06104167]
[1741751782082,0.06149812,122.71,122.68,11.18961912]
[1741751782289,0.06149812,122.71,122.68,0.06104167]
[1741751783886,0.06149812,122.71,122.68,17.49231352]
[1741751784078,0.06149812,122.71,122.7,17.43127185]
[1741751784282,0.06149812,122.71,122.68,17.49231352]
[1741751784486,8.21289812,122.71,122.68,17.49231352]
[1741751786286,0.06149812,122.71,122.68,17.49231352]
[1741751786695,0.06149812,122.71,122.69,8.1515]
[1741751786886,0.06149812,122.71,122.68,17.49231352]
[1741751787188,0.06149812,122.71,122.7,17.43127185]
[1741751787393,0.06149812,122.71,122.7,25.58267185]
[1741751787586,4.5326,122.75,122.7,17.43127185]
[1741751787791,4.5326,122.75,122.72,25.58077185]
[1741751788486,8.1472,122.77,122.73,8.1494]
[1741751788691,36.9147,122.79,122.72,17.43127185]
[1741751788995,0.05135193,122.76,122.74,0.05511072]
[1741751789595,8.19915193,122.76,122.74,0.05511072]
[1741751790091,0.05135193,122.76,122.74,0.05511072]
[1741751795288,8.19875193,122.76,122.74,0.05511072]
[1741751795597,0.05135193,122.76,122.74,0.05511072]
[1741751796699,0.05135193,122.76,122.74,17.48638257]
[1741751796904,2.3458,122.79,122.75,32.32]
[1741751797202,192.0,122.81,122.77,8.1466]
[1741751797401,34.5241,122.82,122.77,8.1466]
[1741751797601,8.1445,122.81,122.76,17.43127185]
[1741751798000,0.06251326,122.8,122.77,0.05170238]
[1741751798195,0.06251326,122.8,122.78,8.146]
[1741751798906,0.06251326,122.8,122.78,17.43127185]
[1741751799295,0.06251326,122.8,122.78,49.75127185]
[1741751799800,325.0193238,122.91,122.78,49.75127185]
[1741751800095,4.5993,122.88,122.84,17.43127185]
[1741751800505,4.5993,122.88,122.82,50.11127185]
[1741751800798,4.5993,122.88,122.82,32.68]
[1741751801006,4.5993,122.88,122.8,17.43127185]
[1741751801007,0.05785689,122.86,122.84,0.06028803]
[1741751801401,8.1418,122.85,122.84,0.06028803]
[1741751801902,8.1418,122.85,122.8,17.43127185]
[1741751802097,8.1421,122.84,122.8,17.43127185]
[1741751802293,8.1421,122.84,122.79,285.2452]
[1741751802294,0.05785689,122.86,122.79,244.44]
[1741751802497,242.09127185,122.87,122.78,17.43127185]
[1741751802805,8.1442,122.81,122.78,17.43127185]
[1741751803199,8.1442,122.81,122.78,17.49007656]
[1741751803402,8.20193311,122.81,122.78,17.49007656]
[1741751804002,8.1448,122.8,122.78,17.49007656]
[1741751804196,0.05773311,122.81,122.78,0.05880471]
[1741751804606,8.1454,122.79,122.78,0.05880471]
[1741751804902,0.05773311,122.81,122.78,0.05880471]
[1741751805104,8.20243311,122.81,122.78,0.05880471]
[1741751805304,0.05773311,122.81,122.78,0.05880471]
[1741751806403,32.67773311,122.81,122.78,0.05880471]
[1741751806601,32.67773311,122.81,122.74,294.43127185]
[1741751806801,8.1472,122.77,122.74,294.43127185]
[1741751807301,32.62,122.81,122.74,261.81127185]
[1741751807507,50.05127185,122.81,122.72,50.05127185]
[1741751807805,0.05865092,122.79,122.76,0.06077949]
[1741751808004,8.1486,122.75,122.72,50.03127185]
[1741751808402,34.8823,122.78,122.72,17.43127185]
[1741751808604,8.1505,122.72,122.7,50.01127185]
[1741751808804,2.4136,122.77,122.7,50.01127185]
[1741751809209,0.05302879,122.75,122.72,0.05884873]
[1741751809801,8.1491,122.74,122.72,0.05884873]
[1741751810307,0.05302879,122.75,122.72,0.05884873]
[1741751810710,0.05302879,122.75,122.74,17.43127185]
[1741751811907,0.05302879,122.75,122.72,17.49012058]
[1741751812209,8.20152879,122.75,122.72,17.49012058]
[1741751812409,0.05302879,122.75,122.72,0.05884873]
[1741751812709,8.1492,122.74,122.72,0.05884873]
[1741751812910,0.05302879,122.75,122.72,0.05884873]
[1741751813310,8.20172879,122.75,122.72,0.05884873]
[1741751813610,0.05302879,122.75,122.72,0.05884873]
[1741751813809,8.1494,122.73,122.72,0.05884873]
[1741751814710,32.55302879,122.75,122.7,17.43127185]
[1741751814905,32.55302879,122.75,122.68,17.43127185]
[1741751814906,8.1508,122.71,122.68,17.43127185]
[1741751815510,8.1495,122.73,122.68,17.43127185]
[1741751815704,32.5,122.75,122.7,17.43127185]
[1741751815912,0.05857082,122.72,122.7,17.43127185]
[1741751816509,0.05857082,122.72,122.7,25.58217185]
[1741751817010,0.05857082,122.72,122.7,58.08217185]
[1741751817215,0.05857082,122.72,122.71,8.1507]
[1741751817605,0.05857082,122.72,122.7,49.93127185]
[1741751818214,0.05857082,122.72,122.71,8.1507]
[1741751819304,0.05857082,122.72,122.7,58.08247185]
[1741751821316,0.05857082,122.72,122.7,8.1512]
[1741751821521,0.05857082,122.72,122.69,25.58297185]
[1741751821722,8.1494,122.73,122.69,25.58297185]
[1741751821915,0.05520648,122.72,122.69,17.43127185]
[1741751822111,0.05520648,122.72,122.69,25.58287185]
[1741751822715,0.05520648,122.72,122.71,25.58197185]
[1741751823218,0.05520648,122.72,122.71,57.96197185]
[1741751825919,2.2739,122.76,122.71,49.81127185]
[1741751826121,2.2739,122.76,122.74,8.1486]
[1741751826320,2.2739,122.76,122.73,17.43127185]
[1741751826519,2.2739,122.76,122.73,25.58047185]
[1741751826720,2.2739,122.76,122.69,2.2833]
[1741751826917,2.2739,122.76,122.7,49.85127185]
[1741751827124,0.06004018,122.74,122.71,0.05565068]
[1741751827623,0.06004018,122.74,122.72,8.1499]
[1741751827825,0.06004018,122.74,122.71,0.05565068]
[1741751828025,0.06004018,122.74,122.72,17.43127185]
[1741751828226,0.06004018,122.74,122.73,8.1494]
[1741751828422,0.06004018,122.74,122.72,17.43127185]
[1741751829825,0.06004018,122.74,122.73,8.1494]
[1741751830428,0.06004018,122.74,122.72,17.43127185]
[1741751830623,0.06004018,122.74,122.71,0.05565068]
[1741751831029,8.20914018,122.74,122.71,0.05565068]
[1741751832432,0.06004018,122.74,122.71,0.05565068]
[1741751832932,8.1497,122.73,122.71,0.05565068]
[1741751834341,8.20914018,122.74,122.71,0.05565068]
[1741751835741,0.06004018,122.74,122.71,0.05565068]
[1741751836744,8.20934018,122.74,122.71,0.05565068]
[1741751836933,0.06004018,122.74,122.71,0.05565068]
[1741751837240,0.06004018,122.74,122.72,8.1497]
[1741751837440,0.06004018,122.74,122.71,0.05565068]
[1741751837836,0.06004018,122.74,122.71,8.20615068]
[1741751838944,0.06004018,122.74,122.72,8.15]
[1741751840246,0.06004018,122.74,122.71,0.05565068]
[1741751841044,8.20914018,122.74,122.71,0.05565068]
[1741751841239,0.06004018,122.74,122.72,8.1496]
[1741751841446,0.06004018,122.74,122.72,25.58087185]
[1741751842546,0.06004018,122.74,122.72,17.43127185]
[1741751845947,0.06004018,122.74,122.73,8.1494]
[1741751848354,0.06004018,122.74,122.71,17.48692253]
[1741751849542,8.20894018,122.74,122.71,17.48692253]
[1741751849756,0.06004018,122.74,122.71,0.05565068]
[1741751850051,8.1494,122.73,122.71,0.05565068]
[1741751851449,0.06004018,122.74,122.71,0.05565068]
[1741751852350,8.20914018,122.74,122.71,0.05565068]
[1741751852854,0.06004018,122.74,122.71,0.05565068]
[1741751853053,8.20904018,122.74,122.71,0.05565068]
[1741751853648,8.1495,122.73,122.71,0.05565068]
[1741751855161,8.15,122.72,122.71,0.05565068]
[1741751855649,8.152,122.69,122.68,244.44]
[1741751855858,8.152,122.69,122.67,17.43127185]
[1741751855859,6.8942,122.73,122.67,49.75127185]
[1741751856050,4.70495675,122.72,122.67,49.75127185]
[1741751856252,4.70495675,122.71,122.67,17.43127185]
[1741751856445,6.8942,122.73,122.67,17.43127185]
[1741751856648,8.1526,122.69,122.67,17.43127185]
[1741751858157,0.06259238,122.71,122.67,17.43127185]
[1741751859158,8.21369238,122.71,122.67,17.43127185]
[1741751859958,8.1521,122.69,122.67,17.43127185]
[1741751860660,0.06259238,122.71,122.67,25.58447185]
[1741751861560,0.06259238,122.71,122.67,17.43127185]
[1741751862061,8.21369238,122.71,122.67,25.58427185]
[1741751862260,8.21369238,122.71,122.67,17.43127185]
[1741751862661,8.21369238,122.71,122.67,25.58407185]
[1741751863353,8.21369238,122.71,122.68,8.1526]
[1741751864061,0.06259238,122.71,122.68,8.1526]
[1741751865062,8.21349238,122.71,122.67,17.43127185]
[1741751865259,0.06259238,122.71,122.67,17.43127185]
[1741751866262,0.06259238,122.71,122.68,8.1526]
[1741751866461,0.06259238,122.71,122.67,17.43127185]
[1741751866662,8.21369238,122.71,122.67,25.58407185]
[1741751866857,0.06259238,122.71,122.65,17.43127185]
[1741751867166,8.1539,122.67,122.64,32.32]
[1741751867464,32.32,122.71,122.63,294.19127185]
[1741751867762,0.05282089,122.67,122.64,8.155]
[1741751869167,0.05282089,122.67,122.66,8.154]
[1741751869762,0.05282089,122.67,122.65,17.43127185]
[1741751869962,0.05282089,122.67,122.65,25.58587185]
[1741751871266,0.05282089,122.67,122.66,8.154]
[1741751871766,0.05282089,122.67,122.65,17.43127185]
[1741751872162,0.05282089,122.67,122.66,32.34]
[1741751872559,6.8942,122.73,122.66,32.34]
[1741751872763,6.8942,122.73,122.69,17.43127185]
[1741751873365,15.0436,122.73,122.69,25.58297185]
[1741751873767,0.05431629,122.72,122.7,0.05282089]
[1741751874366,0.05431629,122.72,122.7,8.20412089]
[1741751874667,0.05431629,122.72,122.71,17.43127185]
[1741751875765,6.8862,122.77,122.71,17.43127185]
[1741751875766,4.5819,122.77,122.71,17.43127185]
[1741751875964,4.5819,122.77,122.73,17.43127185]
[1741751876564,12.7287,122.77,122.73,17.43127185]
[1741751876762,0.05453422,122.76,122.74,0.05698726]
[1741751879469,8.20243422,122.76,122.74,0.05698726]
[1741751880668,0.05453422,122.76,122.74,0.05698726]
[1741751881570,8.1481,122.75,122.74,0.05698726]
[1741751884076,8.1488,122.74,122.7,8.151]
[1741751884276,36.9019,122.77,122.71,17.43127185]
[1741751884775,8.1484,122.75,122.71,25.58147185]
[1741751885175,0.06188603,122.74,122.72,0.05014992]
[1741751885471,8.21098603,122.74,122.72,0.05014992]
[1741751885676,0.06188603,122.74,122.72,0.05014992]
[1741751887174,8.1494,122.73,122.72,0.05014992]
[1741751887376,0.06188603,122.74,122.72,0.05014992]
[1741751889879,8.21058603,122.74,122.72,0.05014992]
[1741751890680,0.06188603,122.74,122.72,0.05014992]
[1741751890881,8.21068603,122.74,122.72,0.05014992]
[1741751891881,0.06188603,122.74,122.72,0.05014992]
[1741751895587,0.06188603,122.74,122.73,8.1494]
[1741751896087,0.06188603,122.74,122.72,8.19984992]
[1741751896789,0.06188603,122.74,122.72,0.05014992]
[1741751898183,0.06188603,122.74,122.72,8.20014992]
[1741751900190,0.06188603,122.74,122.72,0.05014992]
[1741751900787,8.1494,122.73,122.72,0.05014992]
[1741751901291,0.06188603,122.74,122.67,261.89127185]
[1741751901484,8.1516,122.7,122.67,17.43127185]
[1741751901683,8.1516,122.7,122.66,8.1538]
[1741751902492,8.1541,122.66,122.61,17.43127185]
[1741751902682,34.5331,122.69,122.61,17.43127185]
[1741751902882,0.06138145,122.65,122.63,8.1559]
[1741751903496,0.06138145,122.65,122.61,17.43127185]
[1741751904300,0.06138145,122.65,122.63,8.1555]
[1741751904495,0.06138145,122.65,122.61,17.43127185]
[1741751904902,0.06138145,122.65,122.63,17.43127185]
[1741751905401,0.06138145,122.65,122.64,8.1554]
[1741751906805,0.06138145,122.65,122.62,8.1565]
[1741751907006,0.06138145,122.65,122.61,17.43127185]
[1741751907208,0.06138145,122.65,122.62,8.1561]
[1741751907505,0.06138145,122.65,122.61,17.43127185]
[1741751908008,0.06138145,122.65,122.63,8.1556]
[1741751908600,0.06138145,122.65,122.61,17.43127185]
[1741751908806,0.06138145,122.65,122.62,8.1564]
[1741751911809,0.06138145,122.65,122.61,17.43127185]